fUSD/lending_fUSD_20250930
["ID","MTS","AMOUNT","RATE_DAILY","PERIOD"]
[388588220,1759246298280,-500.0,0.00019726,2]
[388588221,1759246298290,-500.0,0.00019726,2]
[388588222,1759246298301,-500.0,0.00019726,2]
[388588223,1759246298311,-831.43,0.00019726,2]
[388588224,1759246298322,-500.0,0.00019726,2]
[388588225,1759246298333,-508.93,0.00019726,2]
[388588226,1759246298343,-1605.51,0.00019726,2]
[388588227,1759246298355,-2124.82,0.00019726,2]
[388588228,1759246298365,-520.67216985,0.00019726,2]
[388588229,1759246298374,-814.65,0.00019726,2]
[388588230,1759246298384,-746.76,0.00019726,2]
[388588231,1759246298395,-500.0,0.00019726,2]
[388588232,1759246298406,-500.0,0.00019726,2]
[388588233,1759246298416,-500.0,0.00019726,2]
[388588234,1759246298425,-755.79,0.00019726,2]
[388588235,1759246298435,-500.0,0.00019726,2]
[388588236,1759246298444,-772.99,0.00019726,2]
[388588237,1759246298453,-500.0,0.00019726,2]
[388588238,1759246298463,-2954.2,0.00019726,2]
[388588239,1759246298473,-1914.74,0.00019726,2]
[388588240,1759246298482,-2315.03,0.00019726,2]
[388588241,1759246298492,-1158.5,0.00019726,2]
[388588242,1759246298502,-500.0,0.00019726,2]
[388588243,1759246298512,-500.0,0.00019726,2]
[388588244,1759246298521,-500.0,0.00019726,2]
[388588245,1759246298531,-748.78,0.00019726,2]
[388588246,1759246298541,-500.0,0.00019726,2]
[388588247,1759246298550,-873.41,0.00019726,2]
[388588248,1759246298560,-1444.18,0.00019726,2]
[388588249,1759246298570,-500.0,0.00019726,2]
[388588250,1759246298579,-500.0,0.00019726,2]
[388588251,1759246298589,-500.0,0.00019726,2]
[388588252,1759246298599,-500.0,0.00019726,2]
[388588253,1759246298609,-1278.36,0.00019726,2]
[388588254,1759246298620,-856.51,0.00019726,2]
[388588255,1759246298629,-151.0,0.00019726,2]
[388588256,1759246298639,-500.0,0.00019726,2]
[388588257,1759246298649,-208.291936,0.00019726,2]
[388588258,1759246298658,-512.95,0.00019726,2]
[388588259,1759246298668,-1123.83,0.00019726,2]
[388588260,1759246298678,-500.0,0.00019726,2]
[388588261,1759246298687,-3067.31,0.00019726,2]
[388588262,1759246298697,-500.0,0.00019726,2]
[388588263,1759246298707,-500.0,0.00019726,2]
[388588264,1759246298716,-500.0,0.00019726,2]
[388588265,1759246298726,-790.11,0.00019726,2]
[388588266,1759246298735,-500.0,0.00019726,2]
[388588267,1759246298745,-1074.86,0.00019726,2]
[388588268,1759246298847,-500.0,0.00019726,2]
[388588269,1759246298857,-743.02,0.00019726,2]
[388588270,1759246298867,-500.0,0.00019726,2]
[388588271,1759246298876,-2639.35,0.00019726,2]
[388588272,1759246298886,-500.0,0.00019726,2]
[388588273,1759246298895,-500.0,0.00019726,2]
[388588274,1759246298905,-500.0,0.00019726,2]
[388588275,1759246298915,-603.37,0.00019726,2]
[388588276,1759246298924,-2515.31,0.00019726,2]
[388588277,1759246298934,-150.11360346,0.00019726,2]
[388588278,1759246298943,-500.0,0.00019726,2]
[388588279,1759246298953,-221.07026256,0.00019726,2]
[388588280,1759246298963,-500.0,0.00019726,2]
[388588281,1759246298972,-500.0,0.00019726,2]
[388588282,1759246298982,-1424.54,0.00019726,2]
[388588283,1759246298992,-629.69,0.00019726,2]
[388588284,1759246299001,-500.0,0.00019726,2]
[388588285,1759246299011,-500.0,0.00019726,2]
[388588286,1759246299020,-1515.2,0.00019726,2]
[388588287,1759246299030,-2490.07,0.00019726,2]
[388588288,1759246299039,-500.0,0.00019726,2]
[388588289,1759246299048,-509.34,0.00019726,2]
[388588290,1759246299058,-500.0,0.00019726,2]
[388588291,1759246299067,-565.6,0.00019726,2]
[388588292,1759246299077,-500.0,0.00019726,2]
[388588293,1759246299086,-500.0,0.00019726,2]
[388588294,1759246299098,-666.34,0.00019726,2]
[388588295,1759246299108,-544.49,0.00019726,2]
[388588296,1759246299118,-500.0,0.00019726,2]
[388588297,1759246299128,-685.3,0.00019726,2]
[388588298,1759246299137,-331.92737666,0.00019726,2]
[388588299,1759246299147,-400.0,0.00019726,2]
[388588300,1759246299156,-500.0,0.00019726,2]
[388588301,1759246299166,-500.0,0.00019726,2]
[388588302,1759246299176,-500.0,0.00019726,2]
[388588303,1759246299187,-500.0,0.00019726,2]
[388588304,1759246299196,-500.0,0.00019726,2]
[388588305,1759246299206,-500.0,0.00019726,2]
[388588306,1759246299216,-500.0,0.00019726,2]
[388588307,1759246299226,-500.0,0.00019726,2]
[388588308,1759246299235,-500.0,0.00019726,2]
[388588309,1759246299245,-547.78412728,0.00019726,2]
[388588310,1759246299254,-856.76,0.00019726,2]
[388588311,1759246299263,-784.99,0.00019726,2]
[388588312,1759246299273,-500.0,0.00019726,2]
[388588313,1759246299282,-451.45,0.00019726,2]
[388588314,1759246299292,-500.0,0.00019726,2]
[388588315,1759246299302,-500.0,0.00019726,2]
[388588316,1759246299312,-4857.1,0.00019726,2]
[388588317,1759246299324,-151.0,0.00019726,2]
[388588318,1759246299336,-151.0,0.00019726,2]
[388588319,1759246299348,-2587.65,0.00019726,2]
[388588320,1759246299357,-1000.84,0.00019726,2]
[388588321,1759246299367,-500.0,0.00019726,2]
[388588322,1759246299376,-500.0,0.00019726,2]
[388588323,1759246299386,-500.0,0.00019726,2]
[388588324,1759246299395,-500.0,0.00019726,2]
[388588325,1759246299404,-500.0,0.00019726,2]
[388588326,1759246299413,-500.0,0.00019726,2]
[388588327,1759246299422,-500.0,0.00019726,2]
[388588328,1759246299431,-955.87,0.00019726,2]
[388588329,1759246299440,-500.0,0.00019726,2]
[388588330,1759246299450,-620.53,0.00019726,2]
[388588331,1759246299460,-500.0,0.00019726,2]
[388588332,1759246299469,-500.0,0.00019726,2]
[388588333,1759246299478,-1236.64,0.00019726,2]
[388588334,1759246299487,-500.0,0.00019726,2]
[388588335,1759246299496,-500.0,0.00019726,2]
[388588336,1759246299505,-500.0,0.00019726,2]
[388588337,1759246299514,-151.0,0.00019726,2]
[388588338,1759246299524,-151.0,0.00019726,2]
[388588339,1759246299533,-172.72,0.00019726,2]
[388588340,1759246299542,-500.0,0.00019726,2]
[388588341,1759246299552,-1720.79,0.00019726,2]
[388588342,1759246299561,-2263.53,0.00019726,2]
[388588343,1759246299571,-500.0,0.00019726,2]
[388588344,1759246299579,-500.0,0.00019726,2]
[388588345,1759246299588,-500.0,0.00019726,2]
[388588346,1759246299598,-1017.47,0.00019726,2]
[388588347,1759246299607,-194.465114,0.00019726,2]
[388588348,1759246299616,-194.465114,0.00019726,2]
[388588349,1759246299625,-500.0,0.00019726,2]
[388588350,1759246299634,-194.465114,0.00019726,2]
[388588351,1759246299643,-194.465114,0.00019726,2]
[388588352,1759246299653,-194.465114,0.00019726,2]
[388588353,1759246299664,-194.465114,0.00019726,2]
[388588354,1759246299674,-500.0,0.00019726,2]
[388588355,1759246299683,-194.465114,0.00019726,2]
[388588356,1759246299692,-194.465108,0.00019726,2]
[388588357,1759246299702,-642.86,0.00019726,2]
[388588358,1759246299711,-500.0,0.00019726,2]
[388588359,1759246299720,-2291.89,0.00019726,2]
[388588360,1759246299729,-500.0,0.00019726,2]
[388588361,1759246299739,-918.34,0.00019726,2]
[388588362,1759246299749,-151.0,0.00019726,2]
[388588363,1759246299759,-151.0,0.00019726,2]
[388588364,1759246299768,-151.0,0.00019726,2]
[388588365,1759246299776,-2740.65,0.00019726,2]
[388588366,1759246299784,-151.0,0.00019726,2]
[388588367,1759246299792,-876.15,0.00019726,2]
[388588368,1759246299800,-5036.26,0.00019726,2]
[388588369,1759246299809,-500.0,0.00019726,2]
[388588370,1759246299817,-1702.84,0.00019726,2]
[388588371,1759246299826,-583.7,0.00019726,2]
[388588372,1759246299835,-3972.16,0.00019726,2]
[388588373,1759246299844,-711.31,0.00019726,2]
[388588374,1759246299853,-151.0,0.00019726,2]
[388588375,1759246299862,-151.0,0.00019726,2]
[388588376,1759246299870,-1715.56,0.00019726,2]
[388588377,1759246299879,-500.0,0.00019726,2]
[388588378,1759246299888,-151.0,0.00019726,2]
[388588379,1759246299897,-151.0,0.00019726,2]
[388588380,1759246299906,-500.0,0.00019726,2]
[388588381,1759246299915,-206.47764544,0.00019726,2]
[388588382,1759246299923,-838.69,0.00019726,2]
[388588383,1759246299931,-795.93,0.00019726,2]
[388588384,1759246299939,-3407.7,0.00019726,2]
[388588385,1759246299948,-1305.49,0.00019726,2]
[388588386,1759246299956,-400.84436171,0.00019726,2]
[388588387,1759246299964,-1105.85,0.00019726,2]
[388588388,1759246299973,-500.0,0.00019726,2]
[388588389,1759246299983,-500.0,0.00019726,2]
[388588390,1759246299992,-1298.46,0.00019726,2]
[388588391,1759246300002,-576.52,0.00019726,2]
[388588392,1759246300011,-151.0,0.00019726,2]
[388588393,1759246300020,-151.0,0.00019726,2]
[388588394,1759246300030,-500.0,0.00019726,2]
[388588395,1759246300038,-894.0,0.00019726,2]
[388588396,1759246300048,-665.23,0.00019726,2]
[388588397,1759246300057,-1958.71,0.00019726,2]
[388588398,1759246300068,-1197.44,0.00019726,2]
[388588399,1759246300077,-500.0,0.00019726,2]
[388588400,1759246300086,-500.0,0.00019726,2]
[388588401,1759246300095,-500.0,0.00019726,2]
[388588402,1759246300106,-151.0,0.00019726,2]
[388588403,1759246300115,-507.83,0.00019726,2]
[388588404,1759246300125,-500.0,0.00019726,2]
[388588405,1759246300134,-500.0,0.00019726,2]
[388588406,1759246300143,-500.0,0.00019726,2]
[388588407,1759246300153,-500.0,0.00019726,2]
[388588408,1759246300162,-600.48,0.00019726,2]
[388588409,1759246300171,-500.0,0.00019726,2]
[388588410,1759246300181,-798.63,0.00019726,2]
[388588411,1759246300190,-1205.22,0.00019726,2]
[388588412,1759246300200,-1348.57,0.00019726,2]
[388588413,1759246300210,-572.59,0.00019726,2]
[388588414,1759246300219,-500.0,0.00019726,2]
[388588415,1759246300229,-561.80802418,0.00019726,2]
[388588416,1759246300238,-1363.77,0.00019726,2]
[388588417,1759246300248,-500.0,0.00019726,2]
[388588418,1759246300257,-4476.81,0.00019726,2]
[388588419,1759246300267,-672.17,0.00019726,2]
[388588420,1759246300277,-500.0,0.00019726,2]
[388588421,1759246300286,-1570.81,0.00019726,2]
[388588422,1759246300294,-426.06571073,0.00019726,2]
[388588423,1759246300304,-1083.55,0.00019726,2]
[388588424,1759246300313,-500.0,0.00019726,2]
[388588425,1759246300326,-151.0,0.00019726,2]
[388588426,1759246300336,-151.0,0.00019726,2]
[388588427,1759246300346,-500.0,0.00019726,2]
[388588428,1759246300357,-500.0,0.00019726,2]
[388588429,1759246300367,-1413.1,0.00019726,2]
[388588430,1759246300376,-500.0,0.00019726,2]
[388588431,1759246300385,-500.0,0.00019726,2]
[388588432,1759246300395,-1559.28,0.00019726,2]
[388588433,1759246300406,-1252.09,0.00019726,2]
[388588434,1759246300416,-500.0,0.00019726,2]
[388588435,1759246300425,-500.0,0.00019726,2]
[388588436,1759246300434,-500.0,0.00019726,2]
[388588437,1759246300443,-500.0,0.00019726,2]
[388588438,1759246300452,-500.0,0.00019726,2]
[388588439,1759246300461,-2063.17,0.00019726,2]
[388588440,1759246300471,-882.83,0.00019726,2]
[388588441,1759246300481,-500.0,0.00019726,2]
[388588442,1759246300490,-500.0,0.00019726,2]
[388588443,1759246300499,-2665.26,0.00019726,2]
[388588444,1759246300509,-1563.72,0.00019726,2]
[388588445,1759246300518,-500.0,0.00019726,2]
[388588446,1759246300528,-500.0,0.00019726,2]
[388588447,1759246300537,-500.0,0.00019726,2]
[388588448,1759246300547,-583.08,0.00019726,2]
[388588449,1759246300556,-500.0,0.00019726,2]
[388588450,1759246300565,-837.59,0.00019726,2]
[388588451,1759246300574,-934.85,0.00019726,2]
[388588452,1759246300583,-500.0,0.00019726,2]
[388588453,1759246300593,-3090.82,0.00019726,2]
[388588454,1759246300604,-500.0,0.00019726,2]
[388588455,1759246300613,-1262.19,0.00019726,2]
[388588456,1759246300622,-500.0,0.00019726,2]
[388588457,1759246300633,-4877.12,0.00019726,2]
[388588458,1759246300643,-500.0,0.00019726,2]
[388588459,1759246300652,-500.0,0.00019726,2]
[388588460,1759246300662,-968.06,0.00019726,2]
[388588461,1759246300672,-500.0,0.00019726,2]
[388588462,1759246300681,-933.84,0.00019726,2]
[388588463,1759246300691,-1063.83,0.00019726,2]
[388588464,1759246300700,-1380.92,0.00019726,2]
[388588465,1759246300709,-500.0,0.00019726,2]
[388588466,1759246300719,-500.0,0.00019726,2]
[388588467,1759246300730,-151.0,0.00019726,2]
[388588468,1759246300739,-151.0,0.00019726,2]
[388588469,1759246300748,-500.0,0.00019726,2]
[388588470,1759246300757,-1653.6,0.00019726,2]
[388588471,1759246300767,-500.0,0.00019726,2]
[388588472,1759246300776,-500.0,0.00019726,2]
[388588473,1759246300786,-500.0,0.00019726,2]
[388588474,1759246300795,-904.06,0.00019726,2]
[388588475,1759246300804,-150.0,0.00019726,2]
[388588476,1759246300814,-500.0,0.00019726,2]
[388588477,1759246300825,-150.53374238,0.00019726,2]
[388588478,1759246300835,-500.0,0.00019726,2]
[388588479,1759246300844,-888.74,0.00019726,2]
[388588480,1759246300855,-440.14343093,0.00019726,2]
[388588481,1759246300863,-500.0,0.00019726,2]
[388588482,1759246300872,-901.55,0.00019726,2]
[388588483,1759246300881,-500.0,0.00019726,2]
[388588484,1759246300890,-523.29,0.00019726,2]
[388588485,1759246300902,-1069.66,0.00019726,2]
[388588486,1759246300911,-500.0,0.00019726,2]
[388588487,1759246300919,-1738.73,0.00019726,2]
[388588488,1759246300929,-500.0,0.00019726,2]
[388588489,1759246300937,-151.0,0.00019726,2]
[388588490,1759246300946,-500.0,0.00019726,2]
[388588491,1759246300955,-151.0,0.00019726,2]
[388588492,1759246300963,-500.0,0.00019726,2]
[388588493,1759246300973,-500.0,0.00019726,2]
[388588494,1759246300982,-1334.66,0.00019726,2]
[388588495,1759246300991,-500.0,0.00019726,2]
[388588496,1759246301000,-772.87,0.00019726,2]
[388588497,1759246301008,-1457.28,0.00019726,2]
[388588498,1759246301017,-500.0,0.00019726,2]
[388588499,1759246301025,-2042.26,0.00019726,2]
[388588500,1759246301032,-500.0,0.00019726,2]
[388588501,1759246301040,-500.0,0.00019726,2]
[388588502,1759246301047,-789.99,0.00019726,2]
[388588503,1759246301053,-617.03,0.00019726,2]
[388588504,1759246301060,-500.0,0.00019726,2]
[388588505,1759246301066,-4908.82,0.00019726,2]
[388588506,1759246301073,-599.17,0.00019726,2]
[388588507,1759246301081,-1033.67,0.00019726,2]
[388588508,1759246301090,-688.98,0.00019726,2]
[388588509,1759246301098,-500.0,0.00019726,2]
[388588510,1759246301105,-3533.54,0.00019726,2]
[388588511,1759246301112,-3132.29,0.00019726,2]
[388588512,1759246301120,-738.59,0.00019726,2]
[388588513,1759246301129,-753.73,0.00019726,2]
[388588514,1759246301139,-500.0,0.00019726,2]
[388588515,1759246301148,-500.0,0.00019726,2]
[388588516,1759246301157,-500.0,0.00019726,2]
[388588517,1759246301166,-500.0,0.00019726,2]
[388588518,1759246301176,-3629.01,0.00019726,2]
[388588519,1759246301185,-500.0,0.00019726,2]
[388588520,1759246301195,-500.0,0.00019726,2]
[388588521,1759246301204,-702.96,0.00019726,2]
[388588522,1759246301213,-500.0,0.00019726,2]
[388588523,1759246301223,-500.0,0.00019726,2]
[388588524,1759246301232,-500.0,0.00019726,2]
[388588525,1759246301242,-1002.63,0.00019726,2]
[388588526,1759246301251,-500.0,0.00019726,2]
[388588527,1759246301260,-2006.84,0.00019726,2]
[388588528,1759246301270,-273.888337,0.00019726,2]
[388588529,1759246301279,-500.0,0.00019726,2]
[388588530,1759246301290,-5279.13,0.00019726,2]
[388588531,1759246301300,-958.36,0.00019726,2]
[388588532,1759246301310,-1530.68,0.00019726,2]
[388588533,1759246301321,-500.0,0.00019726,2]
[388588534,1759246301331,-630.96,0.00019726,2]
[388588535,1759246301340,-1791.18,0.00019726,2]
[388588536,1759246301353,-500.0,0.00019726,2]
[388588537,1759246301363,-151.0,0.00019726,2]
[388588538,1759246301372,-151.0,0.00019726,2]
[388588539,1759246301382,-6094.5,0.00019726,2]
[388588540,1759246301391,-500.0,0.00019726,2]
[388588541,1759246301400,-928.38,0.00019726,2]
[388588542,1759246301409,-2498.35,0.00019726,2]
[388588543,1759246301418,-678.96,0.00019726,2]
[388588544,1759246301428,-702.97,0.00019726,2]
[388588545,1759246301437,-500.0,0.00019726,2]
[388588546,1759246301447,-3187.71,0.00019726,2]
[388588547,1759246301456,-500.0,0.00019726,2]
[388588548,1759246301465,-500.0,0.00019726,2]
[388588549,1759246301476,-500.0,0.00019726,2]
[388588550,1759246301486,-500.0,0.00019726,2]
[388588551,1759246301495,-500.0,0.00019726,2]
[388588552,1759246301504,-3214.37,0.00019726,2]
[388588553,1759246301514,-871.68,0.00019726,2]
[388588554,1759246301523,-1474.61,0.00019726,2]
[388588555,1759246301532,-3264.57,0.00019726,2]
[388588556,1759246301542,-500.0,0.00019726,2]
[388588557,1759246301551,-4106.25,0.00019726,2]
[388588558,1759246301560,-343.22747644,0.00019726,2]
[388588559,1759246301570,-500.0,0.00019726,2]
[388588560,1759246301579,-1077.96,0.00019726,2]
[388588561,1759246301589,-500.0,0.00019726,2]
[388588562,1759246301600,-4498.22,0.00019726,2]
[388588563,1759246301609,-1151.92,0.00019726,2]
[388588564,1759246301619,-802.15,0.00019726,2]
[388588565,1759246301628,-730.58,0.00019726,2]
[388588566,1759246301637,-4232.33,0.00019726,2]
[388588567,1759246301647,-2236.75,0.00019726,2]
[388588568,1759246301656,-3523.6,0.00019726,2]
[388588569,1759246301666,-500.0,0.00019726,2]
[388588570,1759246301675,-500.0,0.00019726,2]
[388588571,1759246301684,-3770.1,0.00019726,2]
[388588572,1759246301693,-532.26,0.00019726,2]
[388588573,1759246301703,-505.11,0.00019726,2]
[388588574,1759246301712,-500.0,0.00019726,2]
[388588575,1759246301722,-1379.28,0.00019726,2]
[388588576,1759246301731,-500.0,0.00019726,2]
[388588577,1759246301741,-4031.11,0.00019726,2]
[388588578,1759246301750,-1999.95,0.00019726,2]
[388588579,1759246301760,-500.0,0.00019726,2]
[388588580,1759246301769,-4787.28,0.00019726,2]
[388588581,1759246301779,-755.69,0.00019726,2]
[388588582,1759246301789,-500.0,0.00019726,2]
[388588583,1759246301798,-500.0,0.00019726,2]
[388588584,1759246301807,-553.91,0.00019726,2]
[388588585,1759246301816,-500.0,0.00019726,2]
[388588586,1759246301825,-689.23,0.00019726,2]
[388588587,1759246301835,-500.0,0.00019726,2]
[388588588,1759246301845,-4645.85,0.00019726,2]
[388588589,1759246301859,-1277.94,0.00019726,2]
[388588590,1759246301868,-4108.21,0.00019726,2]
[388588591,1759246301878,-500.0,0.00019726,2]
[388588592,1759246301887,-2530.75,0.00019726,2]
[388588593,1759246301897,-1066.81,0.00019726,2]
[388588594,1759246301907,-500.0,0.00019726,2]
[388588595,1759246301916,-500.0,0.00019726,2]
[388588596,1759246301925,-500.0,0.00019726,2]
[388588597,1759246301934,-500.0,0.00019726,2]
[388588598,1759246301944,-4076.64,0.00019726,2]
[388588599,1759246301953,-151.0,0.00019726,2]
[388588600,1759246301963,-500.0,0.00019726,2]
[388588601,1759246301972,-151.0,0.00019726,2]
[388588602,1759246301981,-4772.39,0.00019726,2]
[388588603,1759246301991,-1714.76,0.00019726,2]
[388588604,1759246302000,-1310.52,0.00019726,2]
[388588605,1759246302010,-500.0,0.00019726,2]
[388588606,1759246302019,-500.0,0.00019726,2]
[388588607,1759246302028,-151.0,0.00019726,2]
[388588608,1759246302037,-500.0,0.00019726,2]
[388588609,1759246302046,-151.0,0.00019726,2]
[388588610,1759246302055,-500.0,0.00019726,2]
[388588611,1759246302064,-500.0,0.00019726,2]
[388588612,1759246302073,-151.0,0.00019726,2]
[388588613,1759246302082,-151.0,0.00019726,2]
[388588614,1759246302091,-500.0,0.00019726,2]
[388588615,1759246302102,-151.0,0.00019726,2]
[388588616,1759246302111,-1052.95,0.00019726,2]
[388588617,1759246302121,-151.0,0.00019726,2]
[388588618,1759246302130,-429.631015,0.00019726,2]
[388588619,1759246302140,-429.631015,0.00019726,2]
[388588620,1759246302150,-194.070911,0.00019726,2]
[388588621,1759246302159,-151.0,0.00019726,2]
[388588622,1759246302168,-8540.161841,0.00019726,2]
[388588623,1759246302177,-562.81,0.00019726,2]
[388588624,1759246302186,-162.359288,0.00019726,2]
[388588625,1759246302195,-3774.66,0.00019726,2]
[388588626,1759246302204,-429.631015,0.00019726,2]
[388588627,1759246302213,-429.631015,0.00019726,2]
[388588628,1759246302223,-346.11439329,0.00019726,2]
[388588629,1759246302232,-3595.55,0.00019726,2]
[388588630,1759246302241,-500.0,0.00019726,2]
[388588631,1759246302250,-836.75,0.00019726,2]
[388588632,1759246302260,-750.66,0.00019726,2]
[388588633,1759246302269,-354.136583,0.00019726,2]
[388588634,1759246302278,-429.631015,0.00019726,2]
[388588635,1759246302288,-405.942172,0.00019726,2]
[388588636,1759246302297,-429.631015,0.00019726,2]
[388588637,1759246302306,-417.411714,0.00019726,2]
[388588638,1759246302316,-1783.61,0.00019726,2]
[388588639,1759246302329,-429.631015,0.00019726,2]
[388588640,1759246302339,-151.0,0.00019726,2]
[388588641,1759246302349,-190.769302,0.00019726,2]
[388588642,1759246302359,-429.63102,0.00019726,2]
[388588643,1759246302370,-151.0,0.00019726,2]
[388588644,1759246302379,-190.769302,0.00019726,2]
[388588645,1759246302389,-3714.03504,0.00019726,2]
[388588646,1759246302400,-7310.876563,0.00019726,2]
[388588647,1759246302412,-500.0,0.00019726,2]
[388588648,1759246302422,-151.0,0.00019726,2]
[388588649,1759246302432,-190.769302,0.00019726,2]
[388588650,1759246302441,-151.0,0.00019726,2]
[388588651,1759246302451,-500.0,0.00019726,2]
[388588652,1759246302460,-190.769302,0.00019726,2]
[388588653,1759246302470,-190.769302,0.00019726,2]
[388588654,1759246302479,-500.0,0.00019726,2]
[388588655,1759246302488,-190.769302,0.00019726,2]
[388588656,1759246302497,-545.83,0.00019726,2]
[388588657,1759246302506,-190.769302,0.00019726,2]
[388588658,1759246302516,-190.769302,0.00019726,2]
[388588659,1759246302529,-648.89,0.00019726,2]
[388588660,1759246302539,-500.0,0.00019726,2]
[388588661,1759246302549,-500.0,0.00019726,2]
[388588662,1759246302558,-500.0,0.00019726,2]
[388588663,1759246302567,-151.0,0.00019726,2]
[388588664,1759246302577,-826.66,0.00019726,2]
[388588665,1759246302587,-500.0,0.00019726,2]
[388588666,1759246302596,-1049.18,0.00019726,2]
[388588667,1759246302607,-151.0,0.00019726,2]
[388588668,1759246302617,-151.0,0.00019726,2]
[388588669,1759246302626,-3234.86,0.00019726,2]
[388588670,1759246302636,-3569.9,0.00019726,2]
[388588671,1759246302647,-1124.58,0.00019726,2]
[388588672,1759246302658,-151.0,0.00019726,2]
[388588673,1759246302668,-151.0,0.00019726,2]
[388588674,1759246302679,-500.0,0.00019726,2]
[388588675,1759246302689,-500.0,0.00019726,2]
[388588676,1759246302699,-546.66,0.00019726,2]
[388588677,1759246302708,-500.0,0.00019726,2]
[388588678,1759246302717,-151.0,0.00019726,2]
[388588679,1759246302727,-500.0,0.00019726,2]
[388588680,1759246302737,-4111.45,0.00019726,2]
[388588681,1759246302747,-151.0,0.00019726,2]
[388588682,1759246302757,-1473.46,0.00019726,2]
[388588683,1759246302767,-500.0,0.00019726,2]
[388588684,1759246302777,-500.0,0.00019726,2]
[388588685,1759246302787,-505.16,0.00019726,2]
[388588686,1759246302796,-688.56,0.00019726,2]
[388588687,1759246302806,-2668.61,0.00019726,2]
[388588688,1759246302816,-2590.93,0.00019726,2]
[388588689,1759246302825,-3238.13,0.00019726,2]
[388588690,1759246302835,-2215.73,0.00019726,2]
[388588691,1759246302844,-500.0,0.00019726,2]
[388588692,1759246302856,-1500.97,0.00019726,2]
[388588693,1759246302865,-605.93,0.00019726,2]
[388588694,1759246303043,-3496.46,0.00019726,2]
[388588695,1759246303054,-605.93,0.00019726,2]
[388588696,1759246303063,-500.0,0.00019726,2]
[388588697,1759246303074,-500.0,0.00019726,2]
[388588698,1759246303084,-3269.23,0.00019726,2]
[388588699,1759246303094,-817.59,0.00019726,2]
[388588700,1759246303106,-500.0,0.00019726,2]
[388588701,1759246303118,-3259.1,0.00019726,2]
[388588702,1759246303128,-827.42,0.00019726,2]
[388588703,1759246303138,-450.94646269,0.00019726,2]
[388588704,1759246303147,-3746.27,0.00019726,2]
[388588705,1759246303158,-500.0,0.00019726,2]
[388588706,1759246303167,-583.28,0.00019726,2]
[388588707,1759246303177,-2849.93,0.00019726,2]
[388588708,1759246303186,-150.0,0.00019726,2]
[388588709,1759246303196,-785.77,0.00019726,2]
[388588710,1759246303206,-2413.95,0.00019726,2]
[388588711,1759246303216,-500.0,0.00019726,2]
[388588712,1759246303225,-501.24295642,0.00019726,2]
[388588713,1759246303235,-500.0,0.00019726,2]
[388588714,1759246303244,-151.0,0.00019726,2]
[388588715,1759246303254,-500.0,0.00019726,2]
[388588716,1759246303264,-151.0,0.00019726,2]
[388588717,1759246303273,-549.93,0.00019726,2]
[388588718,1759246303283,-760.85,0.00019726,2]
[388588719,1759246303293,-151.0,0.00019726,2]